bitfinex-derivatives/quotes_ETHF0:USTF0_20250110
["timestamp","ask_amount","ask_price","bid_price","bid_amount"]
[1736535987611,4.1333,3281.3,3280.1,3.2078]
[1736535987812,0.30479,3280.8,3280.4,0.30482]
[1736535988021,0.3048,3280.7,3280.4,0.30482]
[1736535988321,0.30479,3280.8,3280.5,0.30481]
[1736535988920,0.30478,3280.9,3280.6,0.3048]
[1736535989121,4.1333,3281.3,3280.6,0.3048]
[1736535989309,0.30479,3280.8,3280.6,0.3048]
[1736535989515,4.1333,3281.3,3280.1,3.2078]
[1736535989711,0.30481,3280.6,3280.3,0.30482]
[1736535989920,0.30481,3280.5,3280.3,0.30482]
[1736535990115,4.1333,3281.3,3280.4,0.30482]
[1736535990323,0.3048,3280.7,3280.4,0.30482]
[1736535990515,0.30481,3280.6,3280.1,3.2078]
[1736535990713,3.2078,3280.7,3280.1,3.2078]
[1736535990920,3.2078,3280.7,3279.7,3.2078]
[1736535991118,0.30482,3280.4,3280.2,0.30484]
[1736535992116,0.30481,3280.6,3280.4,0.30482]
[1736535992415,3.2078,3280.7,3280.6,0.3048]
[1736535993223,0.30478,3280.9,3280.7,0.30479]
[1736535993922,0.30478,3280.9,3280.8,40.8]
[1736535994316,0.30478,3280.9,3280.8,41.10478]
[1736535994513,3.2078,3281.1,3280.8,41.10478]
[1736535994917,3.2078,3281.1,3280.3,1.3673]
[1736535995221,3.2078,3281.1,3280.3,0.9261]
[1736535995423,0.76192,3281.0,3280.3,0.9261]
[1736535995617,2.86051146,3280.7,3280.2,3.2078]
[1736535995819,0.30483,3280.3,3280.2,3.2078]
[1736535996229,0.30488,3279.8,3279.7,3.2078]
[1736535996723,0.30487,3279.9,3279.8,0.30488]
[1736535997025,3.2078,3280.3,3279.7,3.2078]
[1736535997724,3.51264,3280.3,3280.1,0.30484]
[1736535997915,3.51264,3280.3,3279.7,3.2078]
[1736535997916,3.2078,3280.3,3280.2,0.30484]
[1736535998317,0.4514,3280.5,3280.1,3.2078]
[1736535998521,0.4633,3280.6,3280.1,3.2078]
[1736535998724,0.30482,3280.4,3280.3,3.2078]
[1736535998931,3.6711,3280.6,3279.5,44.0078]
[1736535999228,0.4633,3280.6,3280.1,3.2078]
[1736535999428,0.30483,3280.4,3280.2,0.30483]
[1736535999626,0.30483,3280.4,3280.3,0.30483]
[1736535999933,0.30481,3280.5,3280.4,0.30482]
[1736536000133,0.30482,3280.5,3280.3,0.30482]
[1736536000525,3.6592,3281.0,3280.6,0.3048]
[1736536000727,3.2078,3281.0,3280.5,3.2078]
[1736536000927,3.2078,3281.0,3280.9,0.30477]
[1736536001628,3.51256,3281.0,3280.9,41.10477]
[1736536001838,3.2078,3281.0,3280.9,41.10477]
[1736536002734,0.4625,3281.6,3280.9,44.0078]
[1736536002930,0.30471,3281.6,3281.5,0.30472]
[1736536003132,0.30472,3281.6,3281.5,0.30472]
[1736536003329,3.65,3282.0,3281.0,0.4366]
[1736536003633,0.30475,3281.2,3281.1,0.30475]
[1736536003833,0.30476,3281.2,3281.1,0.30475]
[1736536004033,0.30476,3281.0,3280.9,40.8]
[1736536004222,0.7619,3281.1,3280.2,3.6444]
[1736536004427,0.4418,3280.9,3280.2,3.6444]
[1736536004630,3.2078,3281.2,3280.3,41.56208]
[1736536004835,0.30476,3281.1,3281.0,0.30476]
[1736536005244,0.30477,3281.0,3280.9,0.30477]
[1736536005434,0.30478,3280.9,3280.7,0.30479]
[1736536005628,0.30478,3280.9,3280.6,0.4567]
[1736536005835,0.30477,3281.0,3280.7,0.30479]
[1736536006035,0.30477,3281.0,3280.9,0.30477]
[1736536006739,0.30477,3281.0,3280.6,3.6645]
[1736536006740,0.30479,3280.9,3280.8,0.30478]
[1736536007442,0.30477,3281.0,3280.9,0.30477]
[1736536007635,0.76185,3281.3,3280.6,3.6645]
[1736536007843,0.30479,3280.7,3280.6,3.2078]
[1736536008043,0.30482,3280.4,3280.3,40.8]
[1736536008240,0.479,3280.6,3280.1,3.687]
[1736536008444,3.2078,3281.3,3280.5,3.2078]
[1736536008638,3.2078,3281.3,3280.6,41.7143]
[1736536008845,0.30479,3280.7,3280.6,42.0191]
[1736536010044,0.30479,3280.7,3280.6,40.8]
[1736536010247,0.30483,3280.3,3280.2,0.30483]
[1736536010737,0.30483,3280.3,3280.2,41.10483]
[1736536011039,0.30483,3280.3,3280.2,41.10484]
[1736536011247,0.30483,3280.3,3280.2,40.8]
[1736536011438,3.2078,3280.4,3279.5,3.5127]
[1736536011639,0.3049,3279.6,3279.5,3.5127]
[1736536011941,0.76211,3280.2,3279.5,44.0078]
[1736536012241,0.4627,3280.0,3279.5,44.0078]
[1736536012439,0.4627,3280.0,3279.7,0.30488]
[1736536012440,0.30488,3279.8,3279.7,0.30488]
[1736536012740,0.4627,3280.0,3279.5,44.0078]
[1736536013237,0.3049,3279.7,3279.6,0.30489]
[1736536013636,0.3049,3279.7,3279.5,44.0078]
[1736536013637,0.3049,3279.6,3279.5,40.8]
[1736536013947,0.30501,3278.4,3278.3,0.30501]
[1736536014246,3.2078,3278.6,3278.3,40.8]
[1736536014449,0.30501,3278.4,3278.3,40.8]
[1736536014634,0.305,3278.5,3278.3,40.8]
[1736536014947,0.30501,3278.4,3278.3,40.8]
[1736536015546,2.86051146,3278.8,3278.3,40.8]
[1736536015847,0.30497,3278.9,3278.7,0.30497]
[1736536016750,0.30498,3278.8,3278.6,0.30498]
[1736536016947,0.30498,3278.7,3278.5,0.30499]
[1736536017241,3.2078,3279.0,3278.4,3.2078]
[1736536017446,0.30499,3278.6,3278.5,0.30499]
[1736536017750,0.30498,3278.7,3278.6,0.30499]
[1736536017945,0.30496,3278.9,3278.4,3.5128]
[1736536018240,3.2078,3279.0,3278.3,40.8]
[1736536018445,0.30499,3278.6,3278.5,0.30499]
[1736536018837,0.30498,3278.7,3278.6,0.30499]
[1736536019349,0.30497,3278.8,3278.6,0.30499]
[1736536019537,3.2078,3279.0,3278.6,0.30499]
[1736536019742,0.30498,3278.7,3278.6,0.30499]
[1736536019942,0.30496,3278.9,3278.8,0.30496]
[1736536020239,0.30497,3278.9,3278.8,0.30497]
[1736536020640,0.30497,3278.8,3278.7,0.30497]
[1736536020846,0.30497,3278.8,3278.7,41.10497]
[1736536021045,0.30497,3278.9,3278.8,0.30497]
[1736536021945,3.2078,3279.0,3278.7,40.8]
[1736536022149,0.30496,3278.9,3278.8,0.30497]
[1736536022644,3.2078,3279.0,3278.8,0.30497]
[1736536022853,3.51276,3279.0,3278.9,0.30496]
[1736536023042,0.4477,3279.5,3278.8,3.2078]
[1736536023246,3.2078,3279.6,3278.8,3.2078]
[1736536023446,1.354,3280.2,3279.3,3.2078]
[1736536023646,0.30489,3279.7,3279.5,0.3049]
[1736536023848,2.86051146,3280.0,3279.5,0.3049]
[1736536024152,0.3049,3279.6,3279.4,0.76141]
[1736536024356,0.3049,3279.5,3279.4,0.76141]
[1736536024550,3.2078,3279.9,3279.1,0.30494]
[1736536024551,0.30493,3279.2,3279.1,0.30494]
[1736536024753,0.30493,3279.3,3279.1,0.30494]
[1736536025150,0.30494,3279.1,3279.0,0.30495]
[1736536025344,0.30495,3279.0,3278.9,3.2078]
[1736536025546,3.2078,3279.5,3278.9,3.2078]
[1736536025847,3.30581146,3279.6,3278.9,3.2078]
[1736536026049,0.4344,3279.7,3279.6,0.3049]
[1736536026353,0.30489,3279.7,3279.5,0.3049]
[1736536026549,3.2078,3279.9,3279.4,3.2078]
[1736536026757,0.30488,3279.8,3279.4,3.2078]
[1736536026952,3.51267,3279.9,3279.8,0.30488]
[1736536027147,3.51267,3279.9,3279.4,3.2078]
[1736536027148,3.2078,3279.9,3279.5,0.4672]
[1736536027346,3.2078,3279.9,3279.6,0.3049]
[1736536027347,0.30489,3279.7,3279.6,0.3049]
[1736536027551,0.30489,3279.7,3279.6,41.1049]
[1736536028253,3.2078,3279.9,3279.8,0.30488]
[1736536028850,0.30483,3280.3,3280.2,0.30483]
[1736536029860,0.30484,3280.2,3280.1,0.30484]
[1736536030153,0.76199,3280.7,3280.2,0.30483]
[1736536030154,0.30483,3280.3,3280.2,0.30483]
[1736536030562,0.30484,3280.2,3280.1,0.30484]
[1736536030750,0.30484,3280.3,3280.2,0.30484]
[1736536030946,6.97911146,3280.8,3279.8,3.2078]
[1736536031255,0.30483,3280.3,3280.2,0.30483]
[1736536031452,6.97911146,3280.8,3279.9,0.76217]
[1736536031652,6.97911146,3280.8,3279.8,3.2078]
[1736536031853,0.30486,3280.0,3279.9,0.30486]
[1736536032055,0.30487,3279.9,3279.8,3.2078]
[1736536032755,0.7622,3279.8,3279.1,3.2078]
[1736536032953,0.30493,3279.2,3279.1,3.2078]
[1736536033153,0.30493,3279.2,3278.1,3.6564]
[1736536033154,2.86051146,3279.2,3278.1,3.6564]
[1736536033354,3.2078,3278.9,3278.2,41.2678]
[1736536033547,0.30498,3278.7,3278.3,0.30501]
[1736536033754,0.305,3278.5,3278.4,0.30501]
[1736536033950,2.86051146,3278.8,3278.1,2.3556]
[1736536034155,0.4326,3279.0,3277.3,0.30511]
[1736536034156,0.30509,3277.6,3277.3,0.30511]
[1736536034452,2.86051146,3277.6,3276.7,3.6564]
[1736536034657,0.30513,3277.1,3276.9,0.30514]
[1736536034958,0.30514,3277.0,3276.8,0.30515]
[1736536035152,0.30512,3277.2,3277.0,0.30514]
[1736536035356,3.2078,3277.3,3277.2,0.30512]
[1736536035761,3.51291,3277.3,3277.2,40.8]
[1736536036550,3.51291,3277.3,3277.2,41.10512]
[1736536036756,3.2078,3277.3,3277.2,41.10512]
[1736536037866,3.2078,3277.7,3277.3,0.3051]
[1736536038158,3.2078,3277.7,3277.2,40.8]
[1736536038366,0.76286,3277.0,3276.2,0.4454]
[1736536038661,0.3052,3276.3,3276.2,0.4454]
[1736536038853,0.3052,3276.4,3276.2,0.75061]
[1736536039050,0.3052,3276.4,3276.2,0.4454]
[1736536039262,0.3052,3276.3,3276.2,0.4454]
[1736536039464,0.3052,3276.3,3276.2,41.2454]
[1736536039863,3.2078,3276.3,3275.4,3.2078]
[1736536040160,0.30524,3275.9,3275.6,0.30526]
[1736536040466,0.30525,3275.8,3275.7,40.8]
[1736536040964,4.5818,3276.3,3275.7,40.8]
[1736536041357,0.30525,3275.8,3275.7,40.8]
[1736536041553,0.30524,3275.9,3275.7,40.8]
[1736536041958,0.30525,3275.8,3275.7,40.8]
[1736536042159,4.5818,3276.3,3275.7,40.8]
[1736536042357,0.30525,3275.8,3275.7,40.8]
[1736536043157,4.5818,3276.3,3275.7,40.8]
[1736536043359,0.30525,3275.8,3275.7,40.8]
[1736536044158,0.30525,3275.8,3275.0,3.2078]
[1736536044159,3.2078,3275.8,3275.0,3.2078]
[1736536044555,3.2078,3275.8,3275.1,40.8]
[1736536044760,0.30526,3275.7,3275.1,41.10531]
[1736536044957,0.30523,3276.1,3275.7,0.30525]
[1736536045158,3.2078,3275.9,3274.8,3.2078]
[1736536045369,3.30563098,3275.8,3274.8,3.2078]
[1736536045565,0.30526,3275.7,3275.3,3.51309]
[1736536045768,0.30527,3275.6,3275.3,3.2078]
[1736536046264,0.30528,3275.5,3275.3,3.2078]
[1736536046465,0.76326,3275.3,3273.6,3.2078]
[1736536046664,3.2078,3274.3,3273.7,0.4773]
[1736536046964,3.2078,3274.7,3274.4,0.30537]
[1736536047268,3.2078,3274.7,3274.6,0.30536]
[1736536047565,0.30533,3275.0,3274.2,3.2078]
[1736536047765,3.2078,3275.3,3275.1,0.30531]
[1736536047964,0.30532,3275.1,3274.8,0.30534]
[1736536048162,3.2078,3275.3,3274.7,0.30535]
[1736536048466,3.2078,3275.3,3274.3,3.2078]
[1736536048467,0.3053,3275.2,3274.8,0.30534]
[1736536048668,0.30532,3275.0,3274.8,0.30534]
[1736536048965,3.2078,3275.3,3274.3,3.2078]
[1736536049565,3.2078,3275.3,3274.9,0.30533]
[1736536049766,3.2078,3275.3,3274.3,3.2078]
[1736536049967,3.51314,3274.9,3274.3,3.2078]
[1736536050163,3.2078,3274.9,3274.8,0.30534]
[1736536050471,0.30533,3275.0,3274.8,0.30534]
[1736536050862,3.2078,3275.3,3274.3,3.2078]
[1736536051257,0.30541,3274.2,3273.7,0.4773]
[1736536051473,3.30563098,3274.4,3273.7,0.4773]
[1736536051474,3.2078,3274.1,3273.7,0.4773]
[1736536051661,0.30539,3274.3,3274.0,0.30542]
[1736536051968,3.30563098,3274.4,3273.5,2.87515966]
[1736536051969,0.30543,3273.9,3273.6,0.30545]
[1736536052168,3.2078,3274.2,3273.5,2.87515966]
[1736536052659,3.5132,3274.2,3273.8,0.30543]
[1736536052864,3.2078,3274.2,3274.0,0.30541]
[1736536053069,3.2078,3274.2,3274.1,0.30541]
[1736536053464,3.2078,3274.7,3274.1,3.2078]
[1736536053658,0.4427,3274.9,3274.6,3.2078]
[1736536053964,3.2078,3275.8,3274.7,40.8]
[1736536054271,3.2078,3275.8,3275.0,3.2078]
[1736536054967,0.30521,3276.2,3275.8,0.30524]
[1736536055161,3.2078,3276.3,3275.5,3.2078]
[1736536055364,3.2078,3276.3,3275.6,1.419]
[1736536055562,0.30523,3276.1,3275.6,1.419]
[1736536055768,3.2078,3276.3,3275.7,40.8]
[1736536056070,3.51301,3276.3,3275.9,0.30523]
[1736536056278,0.30522,3276.2,3275.7,40.8]
[1736536056465,3.51301,3276.3,3276.0,0.30523]
[1736536056668,0.30521,3276.2,3275.9,0.30523]
[1736536056970,0.30522,3276.2,3275.9,0.30523]
[1736536057172,0.30522,3276.2,3275.7,40.8]
[1736536057367,3.2078,3276.3,3275.7,40.8]
[1736536057574,0.30523,3276.1,3275.9,0.30524]
[1736536058173,0.30523,3276.1,3275.7,40.8]
[1736536058174,3.2078,3276.3,3275.7,40.8]
[1736536058473,3.2078,3276.3,3276.1,0.30521]
[1736536058766,3.30563098,3276.4,3275.7,40.8]
[1736536058967,3.30563098,3276.4,3276.1,0.30521]
[1736536059175,0.30521,3276.2,3276.0,0.30522]
[1736536059369,3.16980526,3276.2,3276.0,0.30522]
[1736536059571,2.86459526,3276.6,3275.9,3.2078]
[1736536059776,2.86459526,3276.6,3276.4,0.30519]
[1736536059974,2.86459526,3276.6,3275.9,3.2078]
[1736536060166,3.2078,3276.7,3275.9,3.9709]
[1736536060366,2.86459526,3277.0,3275.9,3.9709]
[1736536060579,3.16973526,3277.0,3276.7,0.30516]
[1736536061481,3.16973526,3277.0,3276.8,0.30516]
[1736536061777,1.00598331,3277.7,3276.8,0.30516]
[1736536061778,2.86459526,3277.4,3276.8,3.2078]
[1736536061979,3.16970526,3277.4,3276.8,3.2078]
[1736536062282,3.16973526,3277.0,3276.7,0.30516]
[1736536062681,3.16973526,3277.0,3276.6,0.9014]
[1736536062682,0.30516,3276.8,3276.6,0.9014]
[1736536062883,0.30516,3276.8,3276.6,41.55387]
[1736536063089,3.2078,3277.1,3276.6,0.4487]
[1736536063380,3.51293,3277.1,3276.6,0.4487]
[1736536063677,3.16969526,3277.4,3277.0,0.30514]
[1736536063879,2.86459526,3277.4,3276.7,40.8]
[1736536064175,0.30516,3276.8,3276.6,0.30517]
[1736536064873,2.86459526,3277.0,3276.0,4.6093]
[1736536064874,3.2078,3276.7,3276.0,4.6093]
[1736536065076,3.16980526,3276.2,3275.7,0.30525]
[1736536065382,0.30524,3275.9,3275.7,0.30525]
[1736536065574,2.86459526,3276.2,3275.4,3.2078]
[1736536065879,3.16981526,3276.2,3275.9,0.30524]
[1736536066075,0.30522,3276.1,3275.9,0.30524]
[1736536066277,3.16981526,3276.2,3275.9,0.30524]
[1736536066477,2.86459526,3276.2,3276.0,0.30523]
[1736536066683,3.16980526,3276.2,3275.5,40.8]
[1736536066880,2.86459526,3276.2,3275.9,0.30524]
[1736536067072,3.6524,3276.7,3275.9,3.2078]
[1736536067278,3.95757,3276.7,3276.4,0.30519]
[1736536067784,3.95757,3276.7,3276.5,0.30518]
[1736536067785,3.6524,3276.7,3276.5,0.30518]
[1736536068080,3.6524,3276.7,3276.4,0.30519]
[1736536068282,0.3052,3276.4,3276.2,0.30521]
[1736536068475,3.16977526,3276.6,3276.4,0.30519]
[1736536068679,2.86459526,3276.6,3276.5,0.30518]
[1736536068879,3.2078,3276.7,3276.6,0.30517]
[1736536069478,1.387,3277.2,3276.3,3.2078]
[1736536069783,3.6721,3277.3,3276.5,0.76297]
[1736536069984,3.6721,3277.3,3277.1,0.30512]
[1736536069985,0.30512,3277.2,3277.1,0.30512]
[1736536070580,3.6721,3277.3,3277.0,0.30513]
[1736536070581,0.30513,3277.1,3277.0,0.30513]
[1736536070778,3.6721,3277.3,3276.7,40.8]
[1736536071181,3.6721,3277.3,3276.8,0.30516]
[1736536071374,0.30512,3277.2,3276.8,0.30516]
[1736536071575,3.6721,3277.3,3276.8,0.30516]
[1736536071781,0.30513,3277.1,3276.7,40.8]
[1736536072282,3.6721,3277.3,3276.7,40.8]
[1736536072874,3.2078,3276.9,3275.9,4.1488]
[1736536073078,0.3052,3276.4,3276.3,0.3052]
[1736536073274,0.30521,3276.3,3276.1,0.30521]
[1736536073475,0.30521,3276.3,3276.2,0.30521]
[1736536073687,0.3052,3276.4,3276.2,0.30521]
[1736536073883,3.16976526,3276.6,3276.5,0.30518]
[1736536074079,3.2078,3276.9,3276.0,41.252]
[1736536074388,0.30516,3276.8,3276.6,0.30517]
[1736536074680,0.30516,3276.8,3276.1,0.76306]
[1736536074983,0.30516,3276.8,3276.7,0.30516]
[1736536075180,3.2078,3276.9,3276.0,42.01508]
[1736536075181,0.30517,3276.6,3276.0,42.01508]
[1736536075374,0.30518,3276.5,3276.4,0.30519]
[1736536075574,0.30517,3276.7,3276.6,0.30516]
[1736536076184,0.30517,3276.7,3276.5,0.30518]
[1736536076387,2.86459526,3277.0,3276.7,0.30516]
[1736536076388,0.30516,3276.8,3276.7,0.30516]
[1736536076586,2.86459526,3277.0,3276.3,3.97081]
[1736536076787,3.16973526,3277.0,3276.9,0.30515]
[1736536077181,0.30515,3276.9,3276.7,0.30516]
[1736536077578,0.30515,3276.9,3276.8,0.30516]
[1736536078191,0.30515,3276.9,3276.0,0.30523]
[1736536078192,0.30522,3276.1,3276.0,0.30523]
[1736536078389,2.86459526,3276.5,3275.8,3.2078]
[1736536078690,0.30522,3276.2,3276.1,0.30522]
[1736536079292,3.2078,3276.5,3276.3,0.3052]
[1736536079500,3.28029526,3276.9,3276.3,0.3052]
[1736536079501,7.92369526,3277.3,3276.4,0.76299]
[1736536079800,0.30515,3276.9,3276.8,0.30515]
[1736536080097,7.92369526,3277.3,3276.4,1.3432]
[1736536080492,0.30518,3276.6,3276.5,0.30518]
[1736536080688,0.30518,3276.5,3276.4,1.3432]
[1736536080893,0.30518,3276.5,3276.4,1.64839]
[1736536081090,2.86459526,3276.5,3275.8,44.0078]
[1736536081293,2.86459526,3276.1,3275.5,0.4442]
[1736536081501,0.30528,3275.5,3275.4,3.51309]
[1736536081689,3.2078,3275.9,3275.4,3.2078]
[1736536081894,3.2078,3275.9,3275.5,40.8]
[1736536082398,0.30527,3275.6,3275.5,40.8]
[1736536082999,0.30527,3275.6,3275.5,41.10528]
[1736536083199,0.30527,3275.6,3275.5,40.8]
[1736536083800,0.30527,3275.6,3275.5,41.10528]
[1736536084001,0.30527,3275.6,3275.5,40.8]
[1736536084198,3.2078,3275.9,3275.8,0.30525]
[1736536084897,3.51304,3275.9,3275.6,1.3755]
[1736536085092,3.2078,3275.9,3275.8,0.30525]
[1736536086501,3.51304,3275.9,3275.8,0.30525]
[1736536086999,3.2078,3275.9,3275.8,0.30525]
[1736536087204,3.62756526,3276.5,3275.8,8.97093]
[1736536087205,0.30519,3276.5,3275.8,8.97093]
[1736536087401,0.30518,3276.6,3276.5,0.30517]
[1736536087597,0.30517,3276.8,3276.7,0.30516]
[1736536087804,0.30515,3276.9,3276.8,0.30515]
[1736536088311,0.30514,3277.0,3276.9,0.30513]
[1736536088704,6.52119526,3277.3,3276.7,40.8]
[1736536088705,3.2078,3277.3,3276.7,40.8]
[1736536089009,0.30513,3277.2,3277.1,0.30512]
[1736536089710,3.51291,3277.3,3277.2,0.30512]
[1736536090008,3.2078,3277.3,3277.2,0.30512]
[1736536090399,6.07239526,3277.3,3276.7,40.8]
[1736536090608,0.30512,3277.2,3277.1,0.30512]
[1736536090808,3.2078,3277.3,3276.7,41.5629]
[1736536091006,0.30512,3277.2,3277.1,0.30512]
[1736536091210,0.30511,3277.3,3277.2,0.30511]
[1736536091407,0.3051,3277.4,3277.3,0.3051]
[1736536091910,6.07239526,3277.7,3276.8,0.7629]
[1736536092104,6.07239526,3277.7,3276.9,0.76287]
[1736536092304,0.30508,3277.6,3277.5,0.30509]
[1736536092605,6.07239526,3277.7,3277.0,3.2078]
[1736536093005,6.07239526,3277.7,3277.6,0.30508]
[1736536093006,3.2078,3277.7,3277.6,0.30508]
[1736536093207,0.4488,3277.9,3277.5,3.2078]
[1736536093508,0.30506,3277.8,3277.7,0.30507]
[1736536093809,0.30506,3277.9,3277.7,0.30506]
[1736536094002,0.30506,3277.9,3277.8,40.8]
[1736536094201,0.30505,3277.9,3277.8,40.8]
[1736536094611,3.51283,3278.2,3278.0,0.30504]
[1736536094803,3.51283,3278.2,3278.1,0.30503]
[1736536094804,3.2078,3278.2,3278.1,0.30503]
[1736536096006,3.2078,3278.2,3277.8,40.8]
[1736536096205,3.2078,3278.2,3278.1,0.30503]
[1736536096511,0.30502,3278.3,3278.1,0.30503]
[1736536096707,0.30504,3278.1,3277.8,40.8]
[1736536096916,0.30502,3278.3,3278.0,0.30504]
[1736536097206,0.30503,3278.2,3278.0,0.30504]
[1736536097411,2.86459526,3278.5,3277.8,40.8]
[1736536097613,0.30505,3277.9,3277.8,40.8]
[1736536097813,2.86459526,3278.1,3277.5,3.2078]
[1736536098006,3.2078,3277.9,3277.4,0.9129]
[1736536098405,0.4659,3278.0,3277.5,0.30508]
[1736536098406,0.30508,3277.7,3277.5,0.30508]
[1736536098606,0.4659,3278.0,3277.4,0.9129]
[1736536098811,0.30506,3277.8,3277.6,0.30508]
[1736536099011,0.30506,3277.8,3277.6,0.30507]
[1736536099214,3.2078,3277.9,3277.4,0.9129]
[1736536099514,3.51286,3277.9,3277.8,0.30506]
[1736536099712,0.30506,3277.8,3277.7,0.30507]
[1736536100410,3.2078,3277.9,3277.4,0.9129]
[1736536100804,0.30508,3277.7,3277.6,0.30508]
[1736536101010,0.30508,3277.7,3277.4,0.9129]
[1736536101308,3.2078,3277.9,3277.4,0.9129]
[1736536101509,3.2078,3277.9,3277.8,0.30506]
[1736536101909,3.51285,3277.9,3277.8,0.30506]
[1736536102109,0.30507,3277.7,3277.6,0.30507]
[1736536102314,3.2078,3277.9,3277.4,0.9129]
[1736536102515,3.51286,3277.9,3277.8,0.30506]
[1736536102710,3.2078,3277.9,3277.8,0.30506]
[1736536103216,3.2078,3277.9,3277.4,0.9129]
[1736536103712,3.2078,3277.9,3277.8,0.30506]
[1736536103915,3.2078,3278.4,3277.4,1.67565]
[1736536104114,0.30506,3277.9,3277.8,0.30506]
[1736536104415,3.2078,3278.4,3277.5,3.2078]
[1736536105116,0.30505,3278.0,3277.9,0.30505]
[1736536105318,3.2078,3278.4,3277.5,3.2078]
[1736536106215,3.2078,3277.8,3277.2,40.8]
[1736536106410,0.30509,3277.6,3277.5,0.30508]
[1736536106813,0.3051,3277.5,3277.4,0.30509]
[1736536107111,0.30509,3277.6,3277.5,0.30508]
[1736536107510,0.4343,3277.7,3277.2,40.8]
[1736536107709,1.38,3278.1,3277.2,40.8]
[1736536107909,0.4343,3278.2,3277.5,3.97053]
[1736536108115,0.4343,3278.2,3277.8,0.30506]
[1736536108314,0.30505,3278.0,3277.9,0.30505]
[1736536108608,0.30504,3278.0,3277.9,41.10505]
[1736536108805,0.73933,3278.2,3278.1,0.30503]
[1736536109012,0.30504,3278.1,3278.0,0.30504]
[1736536109210,0.73933,3278.2,3278.1,0.30503]
[1736536109514,0.30504,3278.1,3278.0,0.30503]
[1736536109819,0.30501,3278.4,3277.9,40.8]
[1736536110012,3.2078,3278.5,3278.4,0.30501]
[1736536111019,0.30498,3278.7,3278.6,0.30499]
[1736536111213,3.2078,3279.0,3278.9,0.30496]
[1736536111821,3.51271,3279.5,3279.3,0.30492]
[1736536112010,3.2078,3279.5,3279.3,0.30492]
[1736536112215,3.2078,3279.5,3279.1,0.30494]
[1736536112216,0.30493,3279.3,3279.1,0.30494]
[1736536112617,0.30493,3279.2,3279.0,0.30494]
[1736536112816,0.30497,3278.8,3278.7,3.2078]
[1736536113020,3.2078,3279.1,3278.5,0.918]
[1736536113211,0.30499,3278.6,3278.5,0.4604]
[1736536113414,3.2078,3279.1,3278.5,0.4604]
[1736536113613,3.2078,3279.1,3278.1,3.2078]
[1736536113818,2.86459526,3278.5,3277.3,3.62735526]
[1736536114010,0.30504,3278.1,3278.0,0.30504]
[1736536114209,0.30502,3278.3,3278.2,0.30502]
[1736536114417,0.4644,3278.4,3277.7,40.8]
[1736536114718,0.30506,3277.9,3277.8,0.30506]
[1736536115116,0.76257,3278.2,3277.5,0.898]
[1736536115317,4.24459526,3278.1,3277.2,3.2078]
[1736536115621,0.30511,3277.4,3277.3,41.10511]
[1736536116020,3.97046,3277.8,3277.3,40.8]
[1736536116219,3.5129,3277.4,3277.3,40.8]
[1736536116520,3.2078,3277.4,3276.8,0.30515]
[1736536116718,2.86459526,3277.3,3276.6,0.4432]
[1736536117022,2.86459526,3276.9,3276.5,40.8]
[1736536117216,3.51297,3276.6,3276.5,40.8]
[1736536117615,0.30523,3276.0,3275.4,3.2078]
[1736536117822,0.30521,3276.3,3276.1,0.30522]
[1736536118025,0.30521,3276.3,3276.2,40.8]
[1736536118418,2.86459526,3276.5,3275.4,3.2078]
[1736536118618,3.62756526,3276.5,3275.4,3.2078]
[1736536118818,0.30524,3276.0,3275.8,0.30524]
[1736536119019,0.30524,3276.0,3275.9,40.8]
[1736536120723,2.86459526,3276.5,3275.9,40.8]
[1736536120917,2.86459526,3276.5,3276.0,0.30523]
[1736536121117,2.86459526,3276.5,3275.9,40.8]
[1736536121118,3.51298,3276.6,3276.2,3.2078]
[1736536121413,3.2078,3276.6,3276.5,0.30518]
[1736536121617,3.2078,3276.6,3276.2,3.2078]
[1736536121618,3.51297,3276.6,3276.4,0.30519]
[1736536121818,3.51297,3276.6,3276.5,0.30518]
[1736536121819,3.2078,3276.6,3276.5,0.30518]
[1736536122125,3.2078,3276.6,3276.5,40.8]
[1736536122321,3.51297,3276.6,3276.5,40.8]
[1736536122721,0.4644,3277.0,3276.6,0.30517]
[1736536123024,0.76955,3277.0,3276.8,0.30515]
[1736536123225,0.4644,3277.0,3276.6,3.2078]
[1736536123520,0.30517,3276.6,3276.5,40.8]
[1736536123725,3.51297,3276.6,3276.5,40.8]
[1736536124327,0.3052,3276.3,3276.2,3.2078]
[1736536124824,0.3052,3276.3,3276.2,3.51301]
[1736536125127,0.3052,3276.3,3276.2,3.2078]
[1736536125517,3.2078,3276.6,3276.2,3.2078]
[1736536125718,0.3052,3276.3,3276.2,3.2078]
[1736536125922,0.30518,3276.5,3276.2,44.31301]
[1736536126227,0.30518,3276.5,3276.3,0.30519]
[1736536126423,2.86459526,3276.9,3276.2,44.0078]
[1736536126630,0.30518,3276.6,3276.4,0.30519]
[1736536127032,0.3052,3276.3,3276.2,40.8]
[1736536127226,0.30523,3276.1,3275.8,0.30524]
[1736536127427,2.86459526,3276.5,3275.9,0.30523]
[1736536127626,0.30522,3276.1,3276.0,40.8]
[1736536128027,0.76032,3276.1,3276.0,40.8]
[1736536128229,0.30527,3275.7,3274.8,3.2078]
[1736536128432,0.30523,3276.0,3275.3,0.30529]
[1736536128628,3.31969526,3276.1,3274.8,3.2078]
[1736536128629,2.86459526,3275.7,3274.8,3.2078]